Workbook

Sheet Price Bid
B1: BHARAT HEAVY ELECTRICALS LIMITED, JHANSI
B2: FACTORY CIVIL DEPARTMENT
B3: Price Bid (JS-146)
A4: Name of work - Annual contract for white wash, distempering , snowcem in factory area for one year.
A5: Tender No-FCX/TW/22/19 | I5: Date -28.11.2022
A6: Part (A) DSR items
A7: S. No. | B7: DSR 2016 Reference | C7: DESCRIPTION OF ITEM | D7: % Allocation (Item-wise) | E7: Unit | F7: Quantity | G7: Analysed Rate as per DSR 2016 | H7: Amount (Rs) | I7: Rate per Unit (in Rs.) | J7: Amount (in Rs.)
A8: 1 | B8: 13.26/229 | C8: Providing and applying plaster of paris putty of 2 mm thickness over plastered surface to prepare the surface even and smooth complete. | D8: =H8*0.3295*1.05/496375.45 -> 0.2692967287 | E8: Sqm | F8: 3300 | G8: 117.08 | H8: =G8*F8 -> 386364 | I8: =ROUND(J8/F8,4) -> 0 | J8: =D8*$J$35 -> 0
A9: 2 | B9: 13.37.1/230 | C9: White washing with lime to give an even shade: New work (three or more coats) | D9: =H9*0.3295*1.05/496375.45 -> 0.002365626966 | E9: Sqm | F9: 200 | G9: 16.97 | H9: =G9*F9 -> 3394 | I9: =ROUND(J9/F9,4) -> 0 | J9: 0
A10: 3 | B10: 13.39.1/230 | C10: Colour washing such as green, blue or buff to give an even shade : New work (two or more coats) with a base coat of white washing with lime | D10: 0.003250820322 | E10: Sqm | F10: 200 | G10: 23.32 | H10: 4664 | I10: =ROUND(J10/F10,4) -> 0 | J10: 0
A11: 4 | B11: 13.41.1/230 | C11: Distempering with oil bound washable distemper of approved brand and manufacture to give an even shade New work (two or more coats) over and including priming coat with cement primer. | D11: 0.04799385941 | E11: Sqm | F11: 750 | G11: 91.81 | H11: 68857.5 | I11: 0 | J11: 0
A12: 5 | B12: 13.44.1/230 | C12: Finishing walls with water proofing cement paint of required shade : New w ork (Two or more coats applied @ 3.84 kg/10 sqm). | D12: 0.005876777775 | E12: Sqm | F12: 150 | G12: 56.21 | H12: 8431.5 | I12: 0 | J12: 0
A13: 6 | B13: 13.47.1 /231 | C13: Finishing walls with Premium Acrylic Smooth exterior paint with Silicone additives of required shade: New work (Two or more coats applied @ 1.43 ltr/10 sqm over and including priming coat of exterior primer applied @ 2.20 kg/10 sqm) | D13: 0.07489990389 | E13: Sqm | F13: 1200 | G13: 89.55 | H13: 107460 | I13: 0 | J13: 0
A14: 7 | B14: 13.60.1/232 | C14: Wall painting with plastic emulsion paint of approved brand and manufacture to give an even shade: Two or more coats on new work . | D14: 0.03072561896 | E14: Sqm | F14: 550 | G14: 80.15 | H14: 44082.5 | I14: 0 | J14: 0
A15: 8 | B15: 13.62.1/233 | C15: Painting with synthetic enamel paint of approved brand and manufacture of requird colour to give an even shade two or more coats on new work over an under coat of suitable shade with ordinary paint of approved brand and manufacture. | D15: 0.01875982611 | E15: Sqm | F15: 250 | G15: 107.66 | H15: 26915 | I15: 0 | J15: 0
A16: 9 | B16: 13.63.1/233 | C16: Painting with aluminium paint of approved brand and manufacture to give an even shade . Two or more coats on new work. | D16: 0.009274317152 | E16: Sqm | F16: 200 | G16: 66.53 | H16: 13306 | I16: 0 | J16: 0
A17: 10 | B17: 14.42.1/246 | C17: White washing -Old work (two or more coats) | D17: 0.007004876551 | E17: Sqm | F17: 1000 | G17: 10.05 | H17: 10050 | I17: 0 | J17: 0
A18: 11 | B18: 14.42.2/246 | C18: White washing -Old work (one or more coats) | D18: 0.005185699655 | E18: Sqm | F18: 1200 | G18: 6.2 | H18: 7440 | I18: 0 | J18: 0
A19: 12 | B19: 14.43/246 | C19: Removing white/colour wash by scraping and sand preparing and preparing the surface smooth including necessary repairs to scratches etc. complete. | D19: 0.003204818147 | E19: Sqm | F19: 550 | G19: 8.36 | H19: 4598 | I19: 0 | J19: 0
A20: 13 | B20: 14.45.1/246 | C20: Distempering with oil bound washable distemper of approved brand and manufacture to give an even shade old work ( one or more coats). | D20: 0.2724165125 | E20: Sqm | F20: 12000 | G20: 32.57 | H20: 390840 | I20: 0 | J20: 0
A21: 14 | B21: 14.46/246 | C21: Removing dry or oil bound distemper, waterprofing cement paint and the like by by scraping and sand preparing and preparing the surface smooth including necessary repairs to scratches etc. complete. | D21: 0.03770784292 | E21: Sqm | F21: 5000 | G21: 10.82 | H21: 54100 | I21: 0 | J21: 0
A22: 15 | B22: 14.53.1/247 | C22: Wall painting with plastic emulsion paint of approved brand and manufacture to give an even shade: one or more coats on old work . | D22: 0.02751243678 | E22: Sqm | F22: 750 | G22: 52.63 | H22: 39472.5 | I22: 0 | J22: 0
A23: 16 | B23: 14.54.1/247 | C23: Painting with synthetic enamel paint of approved brand and manufacture of requird colour to give an even shade one or more coats on old work over. | D23: 0.01713232494 | E23: Sqm | F23: 500 | G23: 49.16 | H23: 24580 | I23: 0 | J23: 0
A24: 17 | B24: ………….. | C24: Other Items exept above items but as per CPWD DSR 2016 | D24: 0.02091007926 | E24: item value Rs | F24: 30000 | G24: 1 | H24: 30000 | I24: 0 | J24: 0
A25: Total "A" | D25: =SUM(D8:D24) -> 0.8535180701 | G25: Rs. | H25: =SUM(H8:H24) -> 1224555 | J25: =SUM(J8:J24) -> 0
B28: Part (B) NON-DSR items
A29: 18 | B29: NS-1 | C29: White washing with lime approved brand / quality to give an even shade on vertical AC sheet (height 4 meter to 20 meter) one or more coat including removing and cleaning of webs . | D29: =H29*1.05/496375.45 -> 0.0110737749 | E29: Sqm | F29: 1500 | G29: 3.49 | H29: =G29*F29 -> 5235 | I29: =ROUND(J29/F29,4) -> 0 | J29: =D29*$J$35 -> 0
A30: 19 | B30: NS-2 | C30: Extra for providing and mixing FEVICOL-DDL (or equvalent approved by engineer in charge ) 250 gram per 5 kg Lime (approx) must be mixed for adhesive. Empty container of fevicol and CISF gate entry gate must be submitted by contractor for proof. | D30: =H30*1.05/496375.45 -> 0.004130507462 | E30: kg | F30: 35 | G30: 55.79 | H30: =G30*F30 -> 1952.65 | I30: 0 | J30: =D30*$J$35 -> 0
A31: 20 | B31: NS-3 | C31: Finishing walls with water proofing cement paint of required shade of super snowcem or eqivalent as approved by engineer incharge on old work (one or more coats). | D31: =H31*1.05/496375.45 -> 0.04234899208 | E31: Sqm | F31: 3500 | G31: 5.72 | H31: =G31*F31 -> 20020 | I31: 0 | J31: =D31*$J$35 -> 0
A32: 21 | B32: NS-4 | C32: Colour washing such as green, blue or buff to give an even shade Old work (one or more coats) | D32: =H32*1.05/496375.45 -> 0.007403669944 | E32: Sqm | F32: 2500 | G32: 1.4 | H32: =G32*F32 -> 3500 | I32: 0 | J32: =D32*$J$35 -> 0
A33: 22 | B33: NS-5 | C33: Painting (one or more coats) on fire fighting pipe line of any dia (100 MM to 200 MM dia) synthetic enamel paint of approved brand and manufacture and required colours on old work. | D33: =H33*1.05/496375.45 -> 0.08152498275 | E33: R/M | F33: 1000 | G33: 38.54 | H33: =G33*F33 -> 38540 | I33: 0 | J33: =D33*$J$35 -> 0
A34: Sub total 'B' | D34: =SUM(D29:D33) -> 0.1464819271 | G34: Rs. | H34: =SUM(H29:H33) -> 69247.65 | J34: =SUM(J29:J33) -> 0
A35: Total C=(A+B) | D35: =D34+D25 -> 0.9999999972
A36: IN WORDS | D36: =rup(J35) -> 0
A37: Note -GST extra as applicable
A38: 1. Bidder has to quote in above unlocked cell (J-35) only. Item rate shall be calculated automatically. Calculated item rates upto four decimal points may be adjusted w.r.t. gross total amount and it shall be the itemwise final rate for execution of contract and all other purposes.
A39: 2. Quoted gross total amount should be considered only if quoted in this excel sheet and print out of this should only be considered for evaluation. If Price is quoted in any other format other than the Excel Sheet enclosed to the NIT , the offer of the bidder will be rejected
A40: 3.During the execution , the quantity of various items may vary to any extent depending on requirement of work/site and as per discretion of BHEL.
C43: (Signature and Seal of Contractor )
